bitfinex-derivatives/quotes_ETHF0:USTF0_20250824
["timestamp","ask_amount","ask_price","bid_price","bid_amount"]
[1756078813046,1.419,4782.5,4782.4,1.1687]
[1756078814942,1.419,4782.5,4782.4,0.1832]
[1756078815443,0.8461,4782.2,4781.6,0.3324]
[1756078815639,1.419,4782.2,4782.1,1.1687]
[1756078816142,1.419,4782.2,4782.1,0.6672]
[1756078816945,1.419,4782.2,4782.1,0.3971]
[1756078817152,1.419,4782.2,4782.1,0.6672]
[1756078817343,1.419,4782.2,4781.7,0.3324]
[1756078817650,1.41454664,4781.8,4781.3,0.6025]
[1756078817850,0.8734,4781.5,4781.4,1.1687]
[1756078818050,0.4239,4781.5,4781.4,1.3651]
[1756078818247,0.2462,4782.0,4781.5,0.6025]
[1756078818550,0.2462,4782.5,4781.9,3.774]
[1756078818948,0.5729,4782.5,4782.4,0.5662]
[1756078819149,0.5729,4782.0,4781.9,3.875]
[1756078819345,1.419,4782.0,4781.9,3.391]
[1756078819947,1.419,4782.0,4781.9,3.6611]
[1756078820245,1.419,4782.0,4781.9,3.391]
[1756078820442,1.419,4782.0,4781.9,3.2078]
[1756078821048,1.419,4782.0,4781.9,3.391]
[1756078821250,1.419,4782.0,4781.9,3.6049]
[1756078821449,1.419,4782.0,4781.9,3.875]
[1756078821754,1.419,4782.0,4781.9,4.3765]
[1756078822449,1.419,4782.0,4781.9,1.1687]
[1756078823753,0.2462,4782.3,4782.0,0.3324]
[1756078824056,0.2462,4782.3,4780.9,1.04594]
[1756078824057,0.6471,4782.6,4782.5,1.3583]
[1756078824257,1.419,4782.6,4782.5,1.1687]
[1756078825149,3.2078,4783.2,4782.6,0.6025]
[1756078825150,0.2462,4783.0,4782.6,0.6025]
[1756078825348,0.8953,4783.0,4782.9,1.1687]
[1756078825547,0.1777,4783.0,4782.9,1.3583]
[1756078825951,0.4239,4783.0,4782.9,1.1687]
[1756078826155,1.419,4783.0,4782.9,1.1687]
[1756078826757,0.2462,4783.0,4782.9,1.3583]
[1756078827054,0.2462,4783.3,4783.2,1.3583]
[1756078827454,3.3855,4783.8,4783.7,0.5662]
[1756078827655,3.6317,4783.8,4783.7,1.1687]
[1756078828055,4.0269,4783.8,4783.7,1.1687]
[1756078828252,4.6422,4783.8,4783.7,1.1687]
[1756078831155,0.4239,4783.8,4783.7,1.3559]
[1756078831359,0.2564,4784.1,4784.0,1.3283]
[1756078831766,3.2078,4784.3,4784.2,1.327]
[1756078832058,0.8228,4784.5,4784.4,1.1411]
[1756078832260,1.4381,4784.5,4784.4,1.1411]
[1756078832956,1.4381,4784.5,4782.7,1.04554]
[1756078832957,1.4381,4783.7,4783.6,3.8026]
[1756078833166,1.4381,4783.7,4783.6,3.2078]
[1756078833760,1.4381,4783.7,4783.6,4.0205]
[1756078834066,1.4381,4783.7,4783.6,3.3839]
[1756078834261,1.4381,4783.7,4783.6,4.3489]
[1756078834464,0.2564,4783.7,4783.6,4.5348]
[1756078834757,1.1817,4784.6,4784.5,0.8127]
[1756078834962,2.01100351,4784.6,4784.5,0.8127]
[1756078835157,2.26740351,4784.6,4784.5,0.8127]
[1756078835564,2.26728365,4784.6,4784.5,1.1411]
[1756078836359,1.4381,4784.1,4784.0,0.8127]
[1756078836559,0.5979,4784.1,4784.0,1.1411]
[1756078836766,0.4196,4784.1,4784.0,1.1411]
[1756078836964,0.4196,4784.1,4784.0,1.327]
[1756078837465,1.0899,4784.1,4784.0,1.1411]
[1756078837664,1.4381,4784.1,4784.0,0.8127]
[1756078837866,1.4381,4784.1,4783.7,0.3284]
[1756078838054,0.5664,4783.8,4783.7,0.5045]
[1756078838259,1.4381,4783.8,4783.7,0.973]
[1756078838459,1.4381,4783.8,4783.7,1.1411]
[1756078838655,1.4381,4783.8,4783.7,0.1761]
[1756078838859,0.5664,4783.8,4783.6,3.2078]
[1756078839060,1.4381,4783.7,4783.6,3.3839]
[1756078839260,1.4381,4783.7,4783.6,3.8524]
[1756078839554,1.4381,4783.7,4783.6,4.3489]
[1756078839760,0.4196,4783.7,4783.6,4.3489]
[1756078839960,0.4196,4783.7,4783.6,4.5348]
[1756078840261,1.4381,4783.7,4783.6,4.3489]
[1756078840465,1.4381,4783.7,4783.6,3.6345]
[1756078841167,1.4381,4783.7,4783.6,3.8524]
[1756078841360,1.4381,4783.7,4783.6,3.3839]
[1756078841555,1.4381,4783.7,4783.6,3.2078]
[1756078841768,1.4381,4783.7,4783.6,4.0205]
[1756078841959,1.4381,4783.7,4783.6,4.3489]
[1756078842160,1.4381,4783.7,4783.6,3.8524]
[1756078842562,1.4381,4783.7,4783.2,0.2506]
[1756078842563,0.5664,4783.7,4783.2,0.2506]
[1756078842863,1.4381,4782.9,4782.8,0.8127]
[1756078843259,1.4381,4782.9,4782.8,0.1761]
[1756078843568,1.4381,4782.0,4781.9,0.5621]
[1756078844061,0.2564,4782.4,4781.9,0.748]
[1756078844261,0.2564,4782.4,4782.3,0.5621]
[1756078844465,0.2564,4782.8,4782.3,1.327]
[1756078844658,0.2564,4782.8,4782.7,4.5348]
[1756078844860,3.4749,4783.3,4782.7,0.5621]
[1756078845062,1.4381,4783.1,4783.0,1.1411]
[1756078846968,0.8228,4783.1,4783.0,1.1411]
[1756078847370,1.171,4783.1,4783.0,1.1411]
[1756078847867,0.4196,4783.1,4783.0,1.1411]
[1756078848167,0.2671,4783.4,4782.7,3.2078]
[1756078848168,0.4196,4783.4,4783.3,0.9986]
[1756078848374,0.8228,4783.4,4783.3,1.1411]
[1756078848673,1.171,4783.4,4783.3,1.1411]
[1756078849065,0.6445,4783.4,4783.3,1.327]
[1756078849666,3.2078,4783.9,4783.4,0.2506]
[1756078849864,1.1817,4784.6,4784.5,0.5621]
[1756078850062,2.02767481,4784.6,4784.5,0.8127]
[1756078850263,2.28407481,4784.6,4784.5,0.8127]
[1756078850466,2.01697481,4784.6,4784.5,1.1411]
[1756078850664,1.84415937,4784.6,4784.5,1.1411]
[1756078850864,1.49595937,4784.6,4784.5,1.1411]
[1756078851070,1.09275937,4784.6,4784.5,1.327]
[1756078851267,3.2078,4784.7,4784.6,1.327]
[1756078851465,3.88097317,4784.7,4784.6,1.327]
[1756078851662,0.6153,4785.4,4784.6,1.327]
[1756078851663,3.8231,4785.4,4784.6,1.327]
[1756078851865,1.66889691,4785.3,4785.2,1.1411]
[1756078852066,0.2564,4785.3,4785.2,1.327]
[1756078852366,3.2078,4785.4,4785.3,1.327]
[1756078852771,3.4642,4785.4,4785.3,1.327]
[1756078853166,3.8523,4785.4,4785.3,1.1411]
[1756078853471,3.8523,4785.4,4785.3,1.327]
[1756078853671,3.6274,4785.4,4785.3,1.327]
[1756078854768,0.2564,4785.4,4785.3,1.327]
[1756078855271,0.3482,4785.8,4785.3,0.5621]
[1756078855466,0.2564,4785.7,4785.6,0.5621]
[1756078855667,0.2564,4785.7,4785.6,1.1411]
[1756078855873,0.2564,4785.7,4785.6,1.327]
[1756078856570,0.6445,4785.7,4785.6,1.1411]
[1756078856973,0.4196,4785.7,4785.6,1.327]
[1756078857579,0.2564,4785.7,4785.6,1.327]
[1756078858472,3.2078,4786.1,4785.1,0.418]
[1756078858473,0.2396,4786.0,4785.9,1.3074]
[1756078859074,0.4052,4786.0,4785.9,1.3074]
[1756078860268,0.2396,4786.3,4786.0,1.3074]
[1756078860476,0.2396,4786.2,4786.1,0.9231]
[1756078860776,1.1266,4786.2,4786.1,1.1293]
[1756078862877,0.2396,4786.2,4786.1,1.3074]
[1756078863176,3.2078,4786.7,4786.1,0.5491]
[1756078863475,1.1266,4786.6,4786.5,1.1293]
[1756078863872,0.6329,4786.6,4786.5,1.1293]
[1756078864071,0.2396,4786.6,4786.5,1.3074]
[1756078864267,0.4052,4786.6,4786.5,1.3074]
[1756078864470,0.4052,4786.6,4786.5,1.1293]
[1756078864676,1.1266,4786.6,4786.5,1.1293]
[1756078864975,0.5545,4785.9,4785.4,0.2564]
[1756078865171,0.5545,4785.5,4785.3,3.2078]
[1756078865377,1.3884,4785.4,4785.3,3.2078]
[1756078865878,1.3884,4785.4,4785.3,3.3708]
[1756078866079,1.3884,4785.4,4785.3,3.2078]
[1756078866280,1.3884,4785.4,4785.3,4.1723]
[1756078866476,1.3884,4785.4,4785.3,3.6272]
[1756078866674,44.0078,4786.4,4784.7,3.2078]
[1756078866675,1.1266,4785.1,4784.7,3.2078]
[1756078866981,0.7941,4784.8,4784.7,4.3371]
[1756078867770,0.4052,4784.8,4784.7,4.3371]
[1756078867977,40.8,4786.4,4784.7,4.3371]
[1756078867978,0.2396,4785.8,4785.7,0.5491]
[1756078868174,0.2396,4785.8,4785.7,1.3074]
[1756078868774,0.7941,4786.6,4786.5,0.5491]
[1756078868969,0.4052,4786.6,4786.5,1.1293]
[1756078869477,0.7941,4786.6,4786.5,1.1293]
[1756078869778,1.3884,4786.6,4786.5,1.1293]
[1756078869978,0.8339,4786.5,4786.0,0.3238]
[1756078870178,1.0559,4786.1,4785.9,0.2564]
[1756078870378,0.6626,4785.7,4785.6,0.7432]
[1756078870579,1.3884,4785.7,4785.6,0.9645]
[1756078870775,1.3884,4785.7,4785.6,1.1293]
[1756078871087,0.2396,4786.1,4785.6,5.3074]
[1756078871378,0.3325,4786.9,4786.4,1.3074]
[1756078871379,0.2396,4786.5,4786.4,1.3074]
[1756078871678,0.4052,4786.5,4786.4,1.1293]
[1756078871884,1.1266,4786.5,4786.4,1.1293]
[1756078872083,0.7941,4786.5,4786.4,1.1293]
[1756078873382,0.2396,4786.5,4786.4,1.3074]
[1756078873575,0.3325,4786.9,4786.4,1.3074]
[1756078873773,0.2396,4786.8,4786.7,1.3074]
[1756078874783,0.4052,4786.8,4786.7,1.3074]
[1756078876186,0.5943,4787.3,4786.7,1.72527]
[1756078876388,0.4052,4787.4,4787.3,0.745]
[1756078876680,0.7941,4787.4,4787.3,1.1293]
[1756078876879,1.3884,4787.4,4787.3,1.1293]
[1756078877284,2.05945582,4787.4,4787.3,1.1293]
[1756078878082,1.3884,4787.4,4787.3,1.1293]
[1756078878586,2.05971745,4787.4,4787.3,1.1293]
[1756078878781,1.3884,4787.1,4787.0,3.7569]
[1756078878975,1.3884,4787.1,4787.0,4.3371]
[1756078880086,0.4052,4787.1,4787.0,4.3371]
[1756078880290,0.6329,4787.1,4787.0,4.3371]
[1756078880487,1.79868864,4787.1,4787.0,4.3371]
[1756078880692,2.06048864,4787.1,4787.0,4.3371]
[1756078881378,2.06048864,4787.1,4785.6,19.411]
[1756078881379,5.40079069,4787.1,4785.9,0.2496]
[1756078881582,3.2078,4786.5,4785.9,0.2496]
[1756078881782,3.2078,4786.0,4785.5,0.2564]
[1756078881992,0.67208864,4785.9,4785.7,0.2496]
[1756078882191,0.67208864,4785.9,4785.8,0.2496]
[1756078884384,0.67208864,4785.9,4785.8,0.6357]
[1756078884587,0.67208864,4785.9,4785.8,1.3789]
[1756078884788,0.67208864,4785.9,4785.8,0.2496]
[1756078884988,4.84631768,4785.9,4785.0,0.3238]
[1756078885187,3.2078,4785.5,4784.8,0.2564]
[1756078885380,3.2078,4785.0,4784.8,0.2496]
[1756078885585,3.2078,4785.0,4784.4,0.2564]
[1756078885788,3.2078,4785.0,4784.9,0.5491]
[1756078885989,3.88055842,4785.0,4784.9,1.3789]
[1756078886386,3.2078,4785.0,4784.9,1.3789]
[1756078886589,3.2078,4785.0,4784.9,0.4144]
[1756078887687,3.2345,4785.0,4784.9,0.6488]
[1756078887891,3.2345,4785.0,4784.9,1.4031]
[1756078888188,3.2078,4785.0,4784.9,1.4031]
[1756078888396,3.2286,4785.6,4785.5,0.5717]
[1756078888690,4.08091134,4785.6,4785.5,1.082]
[1756078888995,4.08091134,4785.6,4785.5,0.4198]
[1756078889195,3.90678288,4785.6,4785.5,0.2604]
[1756078889388,4.08090253,4785.6,4785.5,0.2604]
[1756078890191,4.07500253,4785.6,4785.5,1.4085]
[1756078890392,4.08090253,4785.6,4785.5,1.4085]
[1756078890590,4.08090253,4785.6,4785.5,1.082]
[1756078890895,3.90678288,4785.6,4785.5,1.082]
[1756078891285,3.90678288,4785.6,4785.5,1.4085]
[1756078892192,3.90678288,4785.6,4785.5,1.082]
[1756078892985,3.90088288,4785.6,4785.5,1.4085]
[1756078893186,3.2078,4785.6,4785.5,1.4085]
[1756078894493,3.2237,4785.6,4785.5,1.4085]
[1756078894693,3.2284,4785.6,4785.5,1.4085]
[1756078894892,3.2284,4785.6,4785.5,0.4198]
[1756078895197,3.2284,4785.6,4785.2,0.2604]
[1756078895198,0.0206,4785.3,4785.2,0.2604]
[1756078895492,0.0206,4785.3,4785.2,1.4085]
[1756078897195,0.0159,4785.3,4785.2,1.4085]
[1756078897496,3.2237,4785.6,4785.5,1.4085]
[1756078898201,3.2078,4785.6,4785.5,1.4085]
[1756078898891,3.2284,4785.6,4785.5,1.082]
[1756078899087,3.2284,4785.6,4785.5,0.2604]
[1756078899592,3.2284,4785.6,4785.5,0.8476]
[1756078899797,3.2284,4785.6,4785.5,1.082]
[1756078900491,3.2284,4785.6,4785.5,1.4085]
[1756078901188,3.2237,4785.6,4785.5,1.4085]
[1756078901697,3.2078,4785.6,4785.5,1.4085]
[1756078902899,3.2078,4786.1,4786.0,1.4085]
[1756078904091,3.2078,4786.6,4786.0,5.82642]
[1756078904300,3.2078,4786.6,4786.5,1.4085]
[1756078904492,3.2125,4787.2,4786.6,0.5103]
[1756078904693,1.3993429,4787.1,4787.0,0.8476]
[1756078904895,0.9838,4787.1,4787.0,0.8476]
[1756078905997,0.7275,4787.1,4787.0,1.4085]
[1756078906389,0.3293,4787.6,4787.0,1.4085]
[1756078906592,3.5986,4787.7,4787.6,0.5717]
[1756078906803,3.5986,4787.7,4787.6,1.4085]
[1756078907097,3.425,4787.7,4787.6,1.4085]
[1756078907496,3.9232,4787.7,4787.6,1.4085]
[1756078908894,3.867,4787.7,4787.1,0.2604]
[1756078909200,0.9838,4787.2,4787.1,0.6882]
[1756078909794,0.9838,4787.2,4787.1,0.8476]
[1756078909996,0.7228,4787.2,4787.1,1.4085]
[1756078910193,0.7154,4787.2,4787.1,1.4085]
[1756078911100,3.5324,4787.7,4787.1,0.5717]
[1756078911305,3.9232,4787.7,4787.6,1.4085]
[1756078911498,3.9306,4787.7,4787.6,1.4085]
[1756078911806,4.1916,4787.7,4787.6,0.8476]
[1756078912393,4.1916,4787.7,4787.6,0.6882]
[1756078912596,4.1916,4787.7,4787.6,0.5103]
[1756078912797,3.9353,4787.7,4787.6,1.4085]
[1756078913104,0.7228,4787.7,4787.6,1.4085]
[1756078913306,0.7154,4787.7,4787.6,1.4085]
[1756078913903,0.7228,4787.7,4787.6,1.4085]
[1756078914310,0.7275,4787.7,4787.6,1.082]
[1756078914606,0.7275,4787.7,4787.6,1.4085]
[1756078915004,0.7228,4787.7,4787.6,1.4085]
[1756078915502,0.7154,4787.7,4787.6,1.4085]
[1756078915814,0.2172,4787.7,4787.6,1.4085]
[1756078916004,0.3908,4788.0,4787.9,0.5717]
[1756078916309,0.7154,4788.0,4787.9,1.4085]
[1756078919505,3.2078,4788.3,4788.0,1.2486]
[1756078919506,0.2252,4788.1,4788.0,1.2486]
[1756078919707,0.7427,4788.1,4788.0,1.4146]
[1756078920304,0.9818,4788.1,4788.0,0.8383]
[1756078920803,0.9818,4788.1,4788.0,1.0664]
[1756078921709,3.2078,4788.3,4788.2,0.5696]
[1756078922005,3.2078,4788.3,4788.2,1.4146]
[1756078922405,0.3513,4788.8,4788.0,0.41775]
[1756078922602,0.5765,4788.8,4788.7,1.4146]
[1756078923105,1.0,4789.3,4789.2,0.5696]
[1756078923308,1.0,4789.3,4789.2,1.4146]
[1756078925004,0.4689,4789.3,4789.2,5.83225]
[1756078925410,0.3513,4790.4,4790.1,0.5696]
[1756078925607,0.3513,4790.4,4790.1,1.4146]
[1756078925803,0.2391,4790.5,4790.1,1.4146]
[1756078927612,1.2576,4790.2,4790.1,1.4146]
[1756078927812,1.1,4790.2,4790.1,1.4146]
[1756078928518,1.1,4790.2,4790.1,5.4146]
[1756078929206,1.6765,4790.2,4790.1,1.4146]
[1756078929413,2.5054,4790.2,4790.1,1.1715]
[1756078929916,1.4054,4789.9,4789.8,1.1715]
[1756078930110,1.4054,4789.9,4789.8,0.5952]
[1756078930504,0.1576,4789.9,4789.8,1.4146]
[1756078930714,1.4967,4790.2,4790.1,0.8127]
[1756078931013,1.1,4790.2,4790.1,1.4146]
[1756078931703,1.3252,4790.2,4790.1,1.4146]
[1756078931911,2.5054,4790.2,4790.1,0.5952]
[1756078932209,2.5054,4790.2,4789.7,0.4292]
[1756078932210,1.4054,4789.8,4789.7,0.4292]
[1756078932410,1.4054,4789.8,4789.7,0.8233]
[1756078932714,1.4054,4789.8,4789.7,1.1715]
[1756078933212,1.4054,4789.8,4789.7,0.5952]
[1756078933416,1.4054,4789.8,4789.7,1.1715]
[1756078933805,1.4054,4789.8,4789.7,1.4146]
[1756078934210,1.1447,4789.8,4789.7,1.4146]
[1756078934413,0.6219,4789.8,4789.7,1.4146]
[1756078934610,2.0732,4790.2,4790.1,0.5696]
[1756078934815,2.2447,4790.2,4790.1,1.4146]
[1756078935115,2.5054,4790.2,4790.1,0.8233]
[1756078935308,2.5054,4790.2,4790.1,0.5952]
[1756078935507,1.0541,4789.8,4789.7,0.4292]
[1756078935710,0.5543,4789.5,4789.4,3.637]
[1756078935908,1.4054,4789.5,4789.4,3.803]
[1756078936113,1.4054,4789.5,4789.4,4.3793]
[1756078936313,1.4054,4789.5,4789.4,4.6224]
[1756078936518,1.1447,4789.5,4789.4,4.6224]
[1756078937315,1.1447,4789.5,4789.4,3.2078]
[1756078937518,0.3513,4789.1,4788.7,0.3482]
[1756078937716,1.4054,4788.8,4788.7,1.1715]
[1756078937916,1.1447,4788.8,4788.7,1.4146]
[1756078938313,1.4054,4788.8,4788.7,0.5952]
[1756078938527,1.4054,4788.8,4788.7,1.1715]
[1756078938715,1.4054,4788.8,4788.7,0.1755]
[1756078938921,0.5543,4788.5,4788.4,0.4292]
[1756078939219,1.4054,4788.5,4788.4,1.1715]
[1756078939520,1.4054,4788.5,4788.4,0.5952]
[1756078940217,1.4054,4788.5,4788.4,0.1755]
[1756078940722,1.4054,4788.5,4788.4,0.4292]
[1756078940918,1.4054,4788.5,4788.4,0.5952]
[1756078941123,1.4054,4788.5,4788.4,1.1715]
[1756078941326,2.07585707,4788.5,4788.4,1.1715]
[1756078941620,1.4054,4788.5,4788.4,1.1715]
[1756078941821,2.07585849,4788.5,4788.4,0.5952]
[1756078942123,2.07585849,4788.5,4788.0,0.3482]
[1756078942315,0.5543,4787.8,4787.7,0.5952]
[1756078942514,1.4054,4787.8,4787.7,0.5952]
[1756078942719,1.4054,4787.8,4787.7,0.4292]
[1756078943022,1.4054,4787.8,4787.7,1.1715]
[1756078943418,1.4054,4787.8,4787.7,0.8233]
[1756078943723,1.4054,4787.8,4787.7,0.5952]
[1756078944922,1.4054,4787.8,4787.7,0.8233]
[1756078945122,1.4054,4787.8,4787.7,1.1715]
[1756078945827,2.07657876,4787.8,4787.7,0.5952]
[1756078946123,2.07658768,4787.8,4787.7,0.5952]
[1756078946324,1.4054,4787.8,4787.7,0.5952]
[1756078946823,1.4054,4787.8,4787.7,1.1715]
[1756078947123,3.7982,4788.1,4788.0,0.5696]
[1756078947325,5.284517,4788.1,4788.0,0.4292]
[1756078947517,1.0541,4787.6,4787.5,0.4292]
[1756078947723,1.4054,4787.6,4787.5,0.4292]
[1756078948123,1.4054,4787.6,4787.5,0.1755]
[1756078948330,1.22585144,4787.6,4787.1,3.4509]
[1756078948521,0.555,4787.3,4787.2,0.5701]
[1756078948729,1.393,4787.3,4787.2,0.5701]
[1756078949628,1.393,4787.2,4787.1,0.5507]
[1756078949825,1.393,4787.2,4787.1,1.1494]
[1756078950427,1.1463,4787.2,4787.1,1.3916]
[1756078950622,0.8114,4787.2,4787.1,1.3916]
[1756078950824,0.8114,4787.2,4786.5,0.41788]
[1756078950825,0.9693,4787.6,4787.5,0.5507]
[1756078951024,0.9693,4787.6,4787.5,1.3916]
[1756078951328,0.6344,4787.6,4787.5,1.3916]
[1756078951824,0.9693,4787.6,4787.5,1.3916]
[1756078952521,1.393,4787.6,4787.5,0.4126]
[1756078952722,1.393,4787.6,4787.1,0.2508]
[1756078952916,0.838,4787.1,4786.8,0.2508]
[1756078953118,1.393,4786.9,4786.8,0.4126]
[1756078953329,1.393,4786.9,4786.8,0.1618]
[1756078953526,1.393,4786.7,4786.6,0.2508]
[1756078953828,1.393,4786.7,4786.6,0.5701]
[1756078954031,1.393,4786.7,4786.6,0.3193]
[1756078954525,1.393,4786.7,4786.6,0.1618]
[1756078954725,0.555,4786.4,4786.3,0.2508]
[1756078954930,1.393,4786.4,4786.3,0.8015]
[1756078955226,1.393,4786.4,4786.3,1.1494]
[1756078955430,1.393,4786.4,4786.3,1.3916]
[1756078955629,1.1463,4786.4,4786.3,1.3916]
[1756078956527,1.393,4786.4,4786.3,1.3916]
[1756078958928,0.4161,4786.8,4786.7,0.5507]
[1756078959227,0.1597,4786.8,4786.7,1.3916]
[1756078960235,0.378,4786.8,4786.7,1.3916]
[1756078960529,0.2564,4787.2,4786.7,0.7929]
[1756078960734,0.9693,4787.2,4787.1,1.3916]
[1756078960921,0.6344,4787.2,4787.1,1.3916]
[1756078961322,0.9693,4787.2,4787.1,1.3916]
[1756078962641,1.393,4787.2,4787.1,0.5701]
[1756078963233,1.393,4787.2,4787.1,1.1494]
[1756078963430,0.4161,4787.2,4787.1,1.3916]
[1756078963737,3.2078,4787.5,4787.4,1.3916]
[1756078963738,3.8422,4787.5,4787.4,1.3916]
[1756078964529,4.1771,4787.5,4787.4,1.3916]
[1756078964734,4.3541,4787.5,4787.4,1.3916]
[1756078965428,0.2564,4787.8,4787.5,0.493]
[1756078965633,0.9693,4787.8,4787.7,1.3916]
[1756078966231,1.1463,4787.8,4787.7,1.3916]
[1756078967031,0.5913,4788.5,4788.4,0.8123]
[1756078967237,3.2078,4788.9,4788.4,0.5507]
[1756078967432,3.2078,4788.9,4788.1,19.39]
[1756078967433,0.6344,4788.6,4788.5,1.2298]
[1756078967737,0.9693,4788.6,4788.5,1.3916]
[1756078968938,0.378,4788.6,4788.5,1.3916]
[1756078969132,0.8114,4788.8,4788.6,0.3479]
[1756078969333,0.555,4788.8,4788.7,1.1494]
[1756078969737,0.555,4788.8,4788.5,0.2508]
[1756078969935,0.555,4788.6,4788.5,0.4126]
[1756078970145,1.393,4788.6,4788.5,0.5701]
[1756078970830,0.3953,4788.3,4788.2,3.4586]
[1756078971041,1.393,4788.3,4788.2,3.4586]
[1756078971441,1.393,4788.3,4788.2,4.3572]
[1756078971736,42.29287335,4790.7,4788.2,4.3572]
[1756078971737,3.4642,4789.4,4789.3,0.5507]
[1756078971939,3.4642,4789.4,4789.3,1.3916]
[1756078971940,4.1771,4789.4,4789.3,1.3916]
[1756078972944,4.6008,4789.4,4789.3,0.8015]
[1756078973133,4.6008,4789.4,4789.3,0.5701]
[1756078973829,4.6008,4789.4,4789.3,0.8015]
[1756078974034,4.6008,4789.4,4789.3,0.5701]
[1756078974728,3.7628,4789.4,4788.7,22.5958]
[1756078974942,1.393,4789.1,4789.0,1.1494]
[1756078975329,1.393,4789.1,4789.0,0.2508]
[1756078975539,0.555,4789.1,4788.7,22.5958]
[1756078975737,1.393,4788.9,4788.8,0.5701]
[1756078975938,1.393,4788.9,4788.8,1.1494]
[1756078976140,0.9693,4788.9,4788.8,1.3916]
[1756078976346,0.6344,4788.9,4788.8,1.3916]
[1756078976536,0.63114712,4789.4,4789.3,0.5507]
[1756078976731,0.97574712,4789.4,4789.3,1.3916]
[1756078977140,0.00644712,4789.4,4789.3,1.3916]
[1756078977342,0.84624712,4789.4,4789.3,1.3916]
[1756078977542,1.39944712,4789.4,4789.3,0.5701]
[1756078978041,0.56144712,4789.4,4788.9,0.3479]
[1756078978239,1.3945,4788.8,4788.7,23.1641]
[1756078979235,1.3945,4788.8,4788.7,19.5555]
[1756078979640,1.3945,4788.8,4788.7,19.9563]
[1756078980344,1.3945,4788.8,4788.4,0.2467]
[1756078980345,0.5534,4788.8,4788.4,0.2467]
[1756078980546,0.5534,4788.8,4788.1,3.2078]
[1756078980547,1.3945,4788.5,4788.1,3.2078]
[1756078980739,1.3945,4788.4,4788.3,0.8299]
[1756078981043,0.00644712,4789.4,4789.0,0.8367]
[1756078981242,0.00644712,4789.4,4789.3,1.0451]
[1756078981439,0.00644712,4789.4,4789.3,1.3933]
[1756078981636,0.98364712,4789.4,4789.3,1.3933]
[1756078982346,0.00644712,4789.4,4789.3,1.3933]
[1756078982538,0.00644712,4789.4,4789.3,4.6011]
[1756078982938,0.00644712,4789.4,4789.3,7.37235015]
[1756078983137,1.1,4790.2,4790.1,0.5566]
[1756078983340,1.1,4790.2,4790.1,1.3933]
[1756078983937,2.2475,4790.2,4790.1,1.3933]
[1756078984140,1.3945,4789.7,4789.6,0.5683]
[1756078984546,1.3945,4789.7,4789.6,1.1515]
[1756078984743,1.1,4790.2,4790.1,0.5566]
[1756078985051,1.1,4790.2,4790.1,1.3933]
[1756078986852,1.1,4790.2,4790.1,20.7723]
[1756078988655,1.1,4790.2,4790.1,23.47828638]
[1756078989544,0.2443,4791.1,4790.1,22.08498638]
[1756078989751,0.9772,4791.1,4791.0,0.5683]
[1756078990147,1.1475,4791.1,4791.0,0.5683]
[1756078990354,1.3945,4791.1,4791.0,0.5683]
[1756078991955,0.4035,4791.1,4791.0,0.5683]
[1756078992151,0.6274,4791.4,4791.3,0.3216]
[1756078992351,0.6274,4791.4,4791.3,0.5683]
[1756078992552,1.1502,4792.0,4791.9,0.3216]
[1756078992753,1.1502,4792.0,4791.9,0.5683]
[1756078993158,1.3945,4792.0,4791.9,0.5683]
[1756078994655,0.4913,4791.9,4791.4,3.2078]
[1756078994961,0.6274,4791.5,4791.4,3.7761]
[1756078995353,0.6274,4791.5,4791.4,3.915]
[1756078995554,0.2443,4791.5,4791.4,3.915]
[1756078995750,0.4035,4791.5,4791.4,3.7761]
[1756078995953,0.2443,4791.5,4791.4,3.915]
[1756078996356,1.3945,4791.5,4791.4,3.7761]
[1756078997559,1.1475,4791.5,4791.4,3.7761]
[1756078997957,0.3498,4792.0,4791.4,3.915]
[1756078998156,0.2443,4791.8,4791.5,0.3856]
[1756078998357,0.6274,4791.8,4791.7,0.5683]
[1756078998554,0.9772,4791.8,4791.7,0.5683]
[1756078998758,1.1475,4791.8,4791.7,0.5683]
[1756078999453,1.3945,4791.8,4791.7,0.5683]
[1756079000162,1.1475,4791.8,4791.7,0.5683]
[1756079000862,1.3945,4791.8,4791.7,0.5683]
[1756079002368,0.2443,4791.8,4791.7,0.7072]
[1756079003563,0.2443,4792.6,4792.2,0.41739]
[1756079003767,0.6274,4792.6,4792.5,0.5683]
[1756079003968,1.3945,4792.6,4792.5,0.5683]
[1756079004563,0.6274,4792.6,4792.5,0.5683]
[1756079005161,0.6274,4792.6,4792.5,0.7072]
[1756079005559,0.2443,4792.6,4792.5,0.7072]
[1756079006762,0.6274,4792.6,4792.5,0.7072]
[1756079008280,1.49287335,4794.3,4792.5,0.7072]
[1756079008281,0.2485,4793.4,4793.3,0.3278]
[1756079008568,1.13675685,4793.4,4793.3,20.0706]
[1756079008769,1.29535685,4793.4,4793.3,19.9331]
[1756079009067,1.79115685,4793.4,4793.3,19.9331]
[1756079009271,1.29535685,4793.4,4793.3,19.9331]
[1756079009975,1.29535685,4793.4,4793.3,20.0706]
[1756079010267,0.92015685,4793.4,4793.3,20.0706]
[1756079010471,0.67165685,4793.4,4793.3,20.0706]
[1756079011371,0.67165685,4793.4,4793.3,22.72335355]
[1756079011672,0.2485,4793.8,4793.7,0.7064]